[Event "*** SCC Grand Prix: Titled Tuesday Blitz"]
[Site "Chess.com"]
[Date "2020.08.11"]
[Round "10"]
[White "viktorskliarov"]
[Black "Irishchessman16"]
[Result "1-0"]
[WhiteElo "2596"]
[BlackElo "2392"]
[TimeControl "180+1"]
[EndTime "11:55:31 PDT"]
[Termination "viktorskliarov won by resignation"]

1. e4 {[%clk 0:02:52.3]} 1... c5 {[%clk 0:02:59.4]} 2. Nf3 {[%clk 0:02:52.1]}
2... Nc6 {[%clk 0:02:59.2]} 3. Bb5 {[%clk 0:02:51.7]} 3... g6 {[%clk 0:02:55.2]}
4. O-O {[%clk 0:02:49.8]} 4... Bg7 {[%clk 0:02:52.3]} 5. Re1 {[%clk 0:02:49.6]}
5... e5 {[%clk 0:02:52.4]} 6. Bxc6 {[%clk 0:02:49.5]} 6... dxc6 {[%clk
0:02:49.1]} 7. d3 {[%clk 0:02:49.7]} 7... Qc7 {[%clk 0:02:38.5]} 8. Nbd2 {[%clk
0:02:47]} 8... Nf6 {[%clk 0:02:31.8]} 9. Nc4 {[%clk 0:02:46.2]} 9... Nd7 {[%clk
0:02:31.8]} 10. a3 {[%clk 0:02:44.9]} 10... a5 {[%clk 0:02:12.9]} 11. Be3 {[%clk
0:02:42.5]} 11... O-O {[%clk 0:02:03]} 12. b4 {[%clk 0:02:41.6]} 12... axb4
{[%clk 0:02:00.9]} 13. axb4 {[%clk 0:02:41.6]} 13... Rxa1 {[%clk 0:02:00.7]} 14.
Qxa1 {[%clk 0:02:42.2]} 14... cxb4 {[%clk 0:02:00.8]} 15. Qa7 {[%clk 0:02:36.9]}
15... Re8 {[%clk 0:01:32]} 16. Ra1 {[%clk 0:02:23.9]} 16... Qd8 {[%clk
0:01:10.4]} 17. Nd6 {[%clk 0:02:05.8]} 17... Re6 {[%clk 0:01:06.7]} 18. Nxb7
{[%clk 0:02:01.2]} 18... Bxb7 {[%clk 0:00:53.1]} 19. Qxb7 {[%clk 0:01:58.5]}
19... Bf8 {[%clk 0:00:47.9]} 20. Ra8 {[%clk 0:01:38.8]} 20... Qe7 {[%clk
0:00:47.1]} 21. Bh6 {[%clk 0:01:38.6]} 21... f6 {[%clk 0:00:37.2]} 22. Qxd7
{[%clk 0:01:33.7]} 1-0

[Event "*** SCC Grand Prix: Titled Tuesday Blitz"]
[Site "Chess.com"]
[Date "2020.08.11"]
[Round "10"]
[White "Chernobay_Artem"]
[Black "volkanyirik"]
[Result "0-1"]
[WhiteElo "2458"]
[BlackElo "2296"]
[TimeControl "180+1"]
[EndTime "11:55:35 PDT"]
[Termination "volkanyirik won by resignation"]

1. d4 {[%clk 0:03:00.9]} 1... Nf6 {[%clk 0:02:58.7]} 2. c4 {[%clk 0:02:48.6]}
2... c5 {[%clk 0:02:54.2]} 3. d5 {[%clk 0:02:48.5]} 3... b5 {[%clk 0:02:53.6]}
4. cxb5 {[%clk 0:02:48.2]} 4... a6 {[%clk 0:02:54]} 5. bxa6 {[%clk 0:02:48.9]}
5... Bxa6 {[%clk 0:02:54.4]} 6. Nc3 {[%clk 0:02:49.1]} 6... d6 {[%clk
0:02:54.9]} 7. e4 {[%clk 0:02:49.4]} 7... Bxf1 {[%clk 0:02:55.8]} 8. Kxf1 {[%clk
0:02:50.3]} 8... g6 {[%clk 0:02:55.8]} 9. Nf3 {[%clk 0:02:50.4]} 9... Bg7 {[%clk
0:02:56.4]} 10. g3 {[%clk 0:02:51.1]} 10... O-O {[%clk 0:02:56.8]} 11. Kg2
{[%clk 0:02:51.8]} 11... Nbd7 {[%clk 0:02:57.3]} 12. a4 {[%clk 0:02:52.4]} 12...
Qa5 {[%clk 0:02:56.6]} 13. Ra3 {[%clk 0:02:18.8]} 13... Rfb8 {[%clk 0:02:53.4]}
14. Re1 {[%clk 0:02:11.2]} 14... Ng4 {[%clk 0:02:51.9]} 15. Nb5 {[%clk
0:01:59.2]} 15... Nge5 {[%clk 0:02:33.3]} 16. Bd2 {[%clk 0:01:53.2]} 16... Qb6
{[%clk 0:02:31.6]} 17. Bc3 {[%clk 0:01:53]} 17... Nc4 {[%clk 0:02:28.6]} 18. Ra1
{[%clk 0:01:45.2]} 18... Nxb2 {[%clk 0:02:25]} 19. Qe2 {[%clk 0:01:22.7]} 19...
Nxa4 {[%clk 0:02:08.6]} 20. Bxg7 {[%clk 0:01:20]} 20... Kxg7 {[%clk 0:02:09.5]}
21. Reb1 {[%clk 0:01:15.1]} 21... f6 {[%clk 0:02:04.2]} 22. Rb3 {[%clk
0:00:52.8]} 22... Nc3 {[%clk 0:01:51.5]} 23. Rxc3 {[%clk 0:00:43.8]} 23... Rxa1
{[%clk 0:01:48.1]} 24. Rb3 {[%clk 0:00:44.2]} 24... Qa5 {[%clk 0:01:42.4]} 25.
Nd2 {[%clk 0:00:29.9]} 25... Ra2 {[%clk 0:01:37.5]} 0-1

[Event "*** SCC Grand Prix: Titled Tuesday Blitz"]
[Site "Chess.com"]
[Date "2020.08.11"]
[Round "10"]
[White "Spriteball"]
[Black "IMAghasiyevKamal"]
[Result "0-1"]
[WhiteElo "2142"]
[BlackElo "2448"]
[TimeControl "180+1"]
[EndTime "11:55:36 PDT"]
[Termination "IMAghasiyevKamal won by resignation"]

1. c4 {[%clk 0:03:00.9]} 1... f5 {[%clk 0:02:56.8]} 2. Nc3 {[%clk 0:02:58]} 2...
Nf6 {[%clk 0:02:56.7]} 3. d4 {[%clk 0:02:57.1]} 3... g6 {[%clk 0:02:56.4]} 4.
Bg5 {[%clk 0:02:56.5]} 4... Bg7 {[%clk 0:02:55.7]} 5. Nf3 {[%clk 0:02:55.8]}
5... d6 {[%clk 0:02:52.4]} 6. Bxf6 {[%clk 0:02:47.4]} 6... Bxf6 {[%clk
0:02:51.9]} 7. e4 {[%clk 0:02:47.6]} 7... O-O {[%clk 0:02:50]} 8. Bd3 {[%clk
0:02:46.8]} 8... fxe4 {[%clk 0:02:37.9]} 9. Nxe4 {[%clk 0:02:46.4]} 9... Bg7
{[%clk 0:02:38]} 10. h4 {[%clk 0:02:46]} 10... Bg4 {[%clk 0:02:35.6]} 11. h5
{[%clk 0:02:39.6]} 11... gxh5 {[%clk 0:02:25]} 12. Qe2 {[%clk 0:02:30.6]} 12...
Nc6 {[%clk 0:02:23.3]} 13. Qe3 {[%clk 0:02:23.4]} 13... e5 {[%clk 0:02:13.7]}
14. d5 {[%clk 0:02:20.8]} 14... Nd4 {[%clk 0:02:13.4]} 15. Nxd4 {[%clk
0:02:16.7]} 15... exd4 {[%clk 0:02:13.3]} 16. Qg3 {[%clk 0:02:14.2]} 16... Be5
{[%clk 0:02:08.8]} 17. Qh4 {[%clk 0:01:55.9]} 17... Qxh4 {[%clk 0:01:52.9]} 18.
Rxh4 {[%clk 0:01:56.8]} 18... Rae8 {[%clk 0:01:53.2]} 19. f3 {[%clk 0:01:55.1]}
19... Bg3+ {[%clk 0:01:53.2]} 20. Kd2 {[%clk 0:01:50.4]} 20... Bxh4 {[%clk
0:01:53.3]} 21. fxg4 {[%clk 0:01:50.7]} 21... Rf4 {[%clk 0:01:43.9]} 22. g3
{[%clk 0:01:47.2]} 22... Rfxe4 {[%clk 0:01:43.2]} 23. Bxe4 {[%clk 0:01:44.9]}
23... Rxe4 {[%clk 0:01:43.6]} 24. gxh4 {[%clk 0:01:44.5]} 24... hxg4 {[%clk
0:01:43.6]} 25. Kd3 {[%clk 0:01:42]} 25... Rf4 {[%clk 0:01:43.6]} 26. Re1 {[%clk
0:01:35.8]} 26... Kf7 {[%clk 0:01:40]} 27. b4 {[%clk 0:01:30.3]} 27... h5 {[%clk
0:01:34.6]} 28. c5 {[%clk 0:01:25.9]} 28... g3 {[%clk 0:01:33.8]} 29. Re2 {[%clk
0:01:25.2]} 29... Rxh4 {[%clk 0:01:32.6]} 30. Rg2 {[%clk 0:01:22.4]} 30... Rg4
{[%clk 0:01:31.8]} 31. cxd6 {[%clk 0:01:22.6]} 31... cxd6 {[%clk 0:01:31.4]} 32.
Ke2 {[%clk 0:01:16.6]} 32... h4 {[%clk 0:01:29.4]} 33. Kf3 {[%clk 0:01:16.8]}
33... Rg8 {[%clk 0:01:28.8]} 34. Rg1 {[%clk 0:01:15.8]} 34... h3 {[%clk
0:01:26.9]} 35. Rxg3 {[%clk 0:01:15.5]} 35... Rxg3+ {[%clk 0:01:26.2]} 36. Kxg3
{[%clk 0:01:16.4]} 36... d3 {[%clk 0:01:26.9]} 37. Kxh3 {[%clk 0:01:17.3]} 37...
d2 {[%clk 0:01:27.2]} 38. Kg3 {[%clk 0:01:18.2]} 38... d1=Q {[%clk 0:01:27.6]}
39. Kf2 {[%clk 0:01:18.5]} 39... Qxd5 {[%clk 0:01:27.9]} 40. Ke3 {[%clk
0:01:18.8]} 40... Qc4 {[%clk 0:01:27.7]} 41. Kd2 {[%clk 0:01:18.7]} 41... d5
{[%clk 0:01:24.9]} 0-1

[Event "*** SCC Grand Prix: Titled Tuesday Blitz"]
[Site "Chess.com"]
[Date "2020.08.11"]
[Round "10"]
[White "FairChess_on_YouTube"]
[Black "nrvisakh"]
[Result "1-0"]
[WhiteElo "2987"]
[BlackElo "2774"]
[TimeControl "180+1"]
[EndTime "11:55:41 PDT"]
[Termination "FairChess_on_YouTube won by resignation"]

1. c4 {[%clk 0:03:00.9]} 1... e5 {[%clk 0:02:58.5]} 2. Nc3 {[%clk 0:03:00.5]}
2... Nf6 {[%clk 0:02:58.6]} 3. Nf3 {[%clk 0:03:00]} 3... Nc6 {[%clk 0:02:58.8]}
4. e3 {[%clk 0:03:00.1]} 4... Bb4 {[%clk 0:02:57.5]} 5. Qc2 {[%clk 0:02:59.9]}
5... Bxc3 {[%clk 0:02:57.6]} 6. Qxc3 {[%clk 0:02:59]} 6... Qe7 {[%clk
0:02:57.1]} 7. d4 {[%clk 0:02:56.4]} 7... Ne4 {[%clk 0:02:36.4]} 8. Qd3 {[%clk
0:02:56.5]} 8... exd4 {[%clk 0:02:36.3]} 9. Nxd4 {[%clk 0:02:55.5]} 9... Nxd4
{[%clk 0:02:32.5]} 10. Qxd4 {[%clk 0:02:54]} 10... O-O {[%clk 0:02:32.8]} 11.
Bd3 {[%clk 0:02:49.2]} 11... Re8 {[%clk 0:02:32.3]} 12. O-O {[%clk 0:02:46.3]}
12... d6 {[%clk 0:02:32.2]} 13. b3 {[%clk 0:02:42.4]} 13... c5 {[%clk
0:02:08.7]} 14. Qb2 {[%clk 0:02:41.7]} 14... Bf5 {[%clk 0:02:07]} 15. Rd1 {[%clk
0:02:39.6]} 15... Bg6 {[%clk 0:02:02.1]} 16. f3 {[%clk 0:02:38.8]} 16... Nf6
{[%clk 0:02:00.8]} 17. Bxg6 {[%clk 0:02:37.8]} 17... hxg6 {[%clk 0:02:01.7]} 18.
e4 {[%clk 0:02:38.1]} 18... Rad8 {[%clk 0:02:00.9]} 19. Bg5 {[%clk 0:02:33.5]}
19... Qe5 {[%clk 0:01:59.7]} 20. Qd2 {[%clk 0:02:32.1]} 20... a6 {[%clk
0:01:52.1]} 21. Rac1 {[%clk 0:02:28.9]} 21... Rd7 {[%clk 0:01:50.4]} 22. Rc3
{[%clk 0:02:28.2]} 22... b5 {[%clk 0:01:38.9]} 23. Rd3 {[%clk 0:02:24.4]} 23...
bxc4 {[%clk 0:01:38.6]} 24. bxc4 {[%clk 0:02:25]} 24... Rb8 {[%clk 0:01:27.6]}
25. Bf4 {[%clk 0:02:24.4]} 25... Qb2 {[%clk 0:01:26.2]} 26. Bxd6 {[%clk
0:02:20.9]} 26... Qxd2 {[%clk 0:01:25.9]} 27. R3xd2 {[%clk 0:02:20.5]} 27...
Rbd8 {[%clk 0:01:23.4]} 28. Bf4 {[%clk 0:02:16.6]} 28... Rxd2 {[%clk 0:01:21.9]}
29. Rxd2 {[%clk 0:02:17.1]} 29... Rxd2 {[%clk 0:01:22.3]} 30. Bxd2 {[%clk
0:02:17.4]} 30... Nd7 {[%clk 0:01:23.2]} 31. Kf2 {[%clk 0:02:14.3]} 31... f6
{[%clk 0:01:17.2]} 32. Ke2 {[%clk 0:02:12.6]} 32... Ne5 {[%clk 0:01:13.6]} 33.
Be3 {[%clk 0:02:11.1]} 33... Nxc4 {[%clk 0:01:13.8]} 34. Bxc5 {[%clk 0:02:10.8]}
34... Kf7 {[%clk 0:01:14.7]} 35. Kd3 {[%clk 0:02:09.8]} 35... Ne5+ {[%clk
0:01:14]} 36. Kc3 {[%clk 0:02:10]} 36... g5 {[%clk 0:01:14.1]} 37. Bd4 {[%clk
0:02:07.5]} 37... Nc6 {[%clk 0:01:10.4]} 38. Kc4 {[%clk 0:02:06.4]} 38... Ke6
{[%clk 0:01:10.6]} 39. Kc5 {[%clk 0:02:06.1]} 39... Ne7 {[%clk 0:01:05.8]} 40.
Kb6 {[%clk 0:02:04.8]} 40... f5 {[%clk 0:01:06]} 41. Kxa6 {[%clk 0:02:00.7]}
41... Nc6 {[%clk 0:01:00.5]} 42. Bc3 {[%clk 0:02:00.4]} 42... g4 {[%clk
0:01:00.8]} 43. Kb6 {[%clk 0:01:57.9]} 43... gxf3 {[%clk 0:01:00.9]} 44. gxf3
{[%clk 0:01:55.7]} 1-0

[Event "*** SCC Grand Prix: Titled Tuesday Blitz"]
[Site "Chess.com"]
[Date "2020.08.11"]
[Round "10"]
[White "GoltsevDmitry2000"]
[Black "Twitch_ElhamBlitz05"]
[Result "0-1"]
[WhiteElo "2637"]
[BlackElo "2768"]
[TimeControl "180+1"]
[EndTime "11:55:42 PDT"]
[Termination "Twitch_ElhamBlitz05 won by resignation"]

1. e4 {[%clk 0:03:00.9]} 1... c6 {[%clk 0:02:59.9]} 2. Nf3 {[%clk 0:03:00.5]}
2... d5 {[%clk 0:03:00.8]} 3. exd5 {[%clk 0:02:58]} 3... cxd5 {[%clk 0:03:01.7]}
4. b3 {[%clk 0:02:57.2]} 4... Nf6 {[%clk 0:03:02.4]} 5. Bb2 {[%clk 0:02:44.6]}
5... Nbd7 {[%clk 0:03:02.7]} 6. g3 {[%clk 0:02:43.6]} 6... g6 {[%clk 0:03:02.9]}
7. Bg2 {[%clk 0:02:44.1]} 7... Bg7 {[%clk 0:03:03.6]} 8. O-O {[%clk 0:02:44.6]}
8... O-O {[%clk 0:03:04.3]} 9. Re1 {[%clk 0:02:45]} 9... e6 {[%clk 0:03:02.2]}
10. Nc3 {[%clk 0:02:45]} 10... a6 {[%clk 0:03:01.6]} 11. Ne2 {[%clk 0:02:45.4]}
11... Re8 {[%clk 0:02:57.8]} 12. d3 {[%clk 0:02:45.6]} 12... e5 {[%clk
0:02:57.6]} 13. c4 {[%clk 0:02:45.4]} 13... e4 {[%clk 0:02:57.2]} 14. dxe4
{[%clk 0:02:42.8]} 14... dxe4 {[%clk 0:02:58.1]} 15. Nfd4 {[%clk 0:02:40.5]}
15... e3 {[%clk 0:02:57.5]} 16. fxe3 {[%clk 0:02:40.2]} 16... Ng4 {[%clk
0:02:57.2]} 17. Nf4 {[%clk 0:02:37.9]} 17... Nxe3 {[%clk 0:02:56.8]} 18. Qd3
{[%clk 0:02:37.2]} 18... Nc5 {[%clk 0:02:48.6]} 19. Qc3 {[%clk 0:02:25.6]} 19...
Nxg2 {[%clk 0:02:44.6]} 20. Kxg2 {[%clk 0:02:25.9]} 20... Rxe1 {[%clk
0:02:14.6]} 21. Rxe1 {[%clk 0:02:23.1]} 21... b6 {[%clk 0:02:15.1]} 22. Qf3
{[%clk 0:02:06]} 22... Bb7 {[%clk 0:02:11.9]} 23. Nd5 {[%clk 0:02:06.2]} 23...
Bxd5 {[%clk 0:01:55.9]} 24. cxd5 {[%clk 0:01:55.2]} 24... Qd7 {[%clk 0:01:55.8]}
25. d6 {[%clk 0:01:40.6]} 25... Rf8 {[%clk 0:01:21.2]} 26. Qd5 {[%clk
0:01:24.6]} 26... Nd3 {[%clk 0:01:16.7]} 27. Re7 {[%clk 0:01:21.9]} 27... Qg4
{[%clk 0:01:17.2]} 28. Nf3 {[%clk 0:00:59]} 28... Nf4+ {[%clk 0:01:15.9]} 0-1

[Event "*** SCC Grand Prix: Titled Tuesday Blitz"]
[Site "Chess.com"]
[Date "2020.08.11"]
[Round "10"]
[White "KyrgyzFighter"]
[Black "MVM2008"]
[Result "1-0"]
[WhiteElo "2321"]
[BlackElo "2195"]
[TimeControl "180+1"]
[EndTime "11:56:01 PDT"]
[Termination "KyrgyzFighter won on time"]

1. c4 {[%clk 0:03:00.9]} 1... Nf6 {[%clk 0:02:57.5]} 2. Nc3 {[%clk 0:03:01.2]}
2... g6 {[%clk 0:02:56.2]} 3. e4 {[%clk 0:03:01]} 3... d6 {[%clk 0:02:56]} 4. d4
{[%clk 0:03:01.2]} 4... Bg7 {[%clk 0:02:55.9]} 5. f3 {[%clk 0:03:01.7]} 5... O-O
{[%clk 0:02:44.6]} 6. Be3 {[%clk 0:03:01.8]} 6... Nc6 {[%clk 0:02:44.7]} 7. Qd2
{[%clk 0:03:01.1]} 7... a6 {[%clk 0:02:40.8]} 8. Nge2 {[%clk 0:03:00.9]} 8...
Re8 {[%clk 0:02:13.8]} 9. Rc1 {[%clk 0:02:44.9]} 9... Bd7 {[%clk 0:01:51.7]} 10.
g3 {[%clk 0:02:38.3]} 10... Qb8 {[%clk 0:01:28.1]} 11. Bg2 {[%clk 0:02:37.5]}
11... b5 {[%clk 0:01:26.5]} 12. c5 {[%clk 0:02:36.2]} 12... dxc5 {[%clk
0:01:16.1]} 13. d5 {[%clk 0:02:29]} 13... Ne5 {[%clk 0:01:05.7]} 14. Bxc5 {[%clk
0:02:26.8]} 14... Nc4 {[%clk 0:01:00.2]} 15. Qc2 {[%clk 0:02:27]} 15... e6
{[%clk 0:00:51.3]} 16. dxe6 {[%clk 0:02:22]} 16... Bxe6 {[%clk 0:00:44.5]} 17.
O-O {[%clk 0:02:19.4]} 17... Nd7 {[%clk 0:00:29.9]} 18. Bf2 {[%clk 0:02:16.7]}
18... Ndb6 {[%clk 0:00:20.4]} 19. Nf4 {[%clk 0:02:15.7]} 19... b4 {[%clk
0:00:14.4]} 20. Ncd5 {[%clk 0:02:09.1]} 20... Bxd5 {[%clk 0:00:07.8]} 21. Nxd5
{[%clk 0:02:06.6]} 21... Nxd5 {[%clk 0:00:07]} 22. Qxc4 {[%clk 0:02:03.3]} 22...
Ne7 {[%clk 0:00:04.5]} 23. Qxc7 {[%clk 0:01:59.2]} 23... Qxc7 {[%clk 0:00:04.5]}
24. Rxc7 {[%clk 0:02:00.1]} 24... Bxb2 {[%clk 0:00:05.1]} 25. Rd1 {[%clk
0:01:58.3]} 25... Bc3 {[%clk 0:00:04.9]} 26. Rdd7 {[%clk 0:01:57.4]} 26... Kf8
{[%clk 0:00:03.3]} 27. Bc5 {[%clk 0:01:56.7]} 27... Bf6 {[%clk 0:00:02.4]} 28.
e5 {[%clk 0:01:55.6]} 28... Bxe5 {[%clk 0:00:01.4]} 29. Bxe7+ {[%clk 0:01:55.5]}
1-0

[Event "*** SCC Grand Prix: Titled Tuesday Blitz"]
[Site "Chess.com"]
[Date "2020.08.11"]
[Round "10"]
[White "RusPakhom"]
[Black "djano"]
[Result "0-1"]
[WhiteElo "2295"]
[BlackElo "2422"]
[TimeControl "180+1"]
[EndTime "11:56:15 PDT"]
[Termination "djano won by resignation"]

1. e4 {[%clk 0:02:46.3]} 1... Nc6 {[%clk 0:02:55.5]} 2. Nf3 {[%clk 0:02:45.3]}
2... d6 {[%clk 0:02:50.1]} 3. d4 {[%clk 0:02:44.6]} 3... g6 {[%clk 0:02:47.2]}
4. Bb5 {[%clk 0:02:43.8]} 4... a6 {[%clk 0:02:45.7]} 5. Bxc6+ {[%clk 0:02:43.5]}
5... bxc6 {[%clk 0:02:46.6]} 6. Nc3 {[%clk 0:02:43.7]} 6... Bg7 {[%clk
0:02:46.6]} 7. Be3 {[%clk 0:02:43.9]} 7... Nf6 {[%clk 0:02:46.1]} 8. Qd2 {[%clk
0:02:43.8]} 8... Ng4 {[%clk 0:02:45.1]} 9. Bg5 {[%clk 0:02:42.4]} 9... h6 {[%clk
0:02:43.5]} 10. Bh4 {[%clk 0:02:42.1]} 10... Rb8 {[%clk 0:02:39.9]} 11. Rb1
{[%clk 0:02:38.5]} 11... O-O {[%clk 0:02:38.4]} 12. O-O {[%clk 0:02:38.1]} 12...
Qe8 {[%clk 0:02:32.3]} 13. h3 {[%clk 0:02:33.6]} 13... Nf6 {[%clk 0:02:31.2]}
14. Rfe1 {[%clk 0:02:30.9]} 14... Nd7 {[%clk 0:02:08.3]} 15. e5 {[%clk 0:02:19]}
15... dxe5 {[%clk 0:02:02.4]} 16. dxe5 {[%clk 0:02:18.2]} 16... Nc5 {[%clk
0:01:58.4]} 17. b3 {[%clk 0:01:52.3]} 17... Ne6 {[%clk 0:01:57.7]} 18. Rbd1
{[%clk 0:01:46.4]} 18... c5 {[%clk 0:01:39.8]} 19. Nd5 {[%clk 0:01:44.3]} 19...
g5 {[%clk 0:01:38.9]} 20. Bg3 {[%clk 0:01:42.4]} 20... Bb7 {[%clk 0:01:35]} 21.
c4 {[%clk 0:01:41.5]} 21... Rd8 {[%clk 0:01:28.4]} 22. Qa5 {[%clk 0:01:40.1]}
22... Rd7 {[%clk 0:01:15]} 23. Rd3 {[%clk 0:01:12.6]} 23... c6 {[%clk
0:01:06.6]} 24. Red1 {[%clk 0:00:53.1]} 24... cxd5 {[%clk 0:01:06.7]} 25. cxd5
{[%clk 0:00:54]} 25... Nd4 {[%clk 0:01:06.2]} 26. Nxd4 {[%clk 0:00:47.7]} 26...
cxd4 {[%clk 0:01:06.4]} 27. Rxd4 {[%clk 0:00:47.4]} 27... Qd8 {[%clk 0:01:01.4]}
28. R4d3 {[%clk 0:00:42.9]} 28... Qxa5 {[%clk 0:01:00.6]} 0-1

[Event "*** SCC Grand Prix: Titled Tuesday Blitz"]
[Site "Chess.com"]
[Date "2020.08.11"]
[Round "10"]
[White "Djager97"]
[Black "vova-79"]
[Result "1/2-1/2"]
[WhiteElo "2587"]
[BlackElo "2469"]
[TimeControl "180+1"]
[EndTime "11:56:16 PDT"]
[Termination "Game drawn by agreement"]

1. e4 {[%clk 0:03:00.9]} 1... e6 {[%clk 0:02:58.8]} 2. d4 {[%clk 0:03:00.4]}
2... d5 {[%clk 0:02:58.8]} 3. Nc3 {[%clk 0:03:01.3]} 3... dxe4 {[%clk
0:02:58.4]} 4. Nxe4 {[%clk 0:03:02.2]} 4... Nd7 {[%clk 0:02:58.7]} 5. Nf3 {[%clk
0:02:59.3]} 5... Ngf6 {[%clk 0:02:59.6]} 6. Bg5 {[%clk 0:02:54.2]} 6... h6
{[%clk 0:02:57.7]} 7. Nxf6+ {[%clk 0:02:50.8]} 7... Nxf6 {[%clk 0:02:56.8]} 8.
Bh4 {[%clk 0:02:49.5]} 8... c5 {[%clk 0:02:55.9]} 9. Bb5+ {[%clk 0:02:45.5]}
9... Bd7 {[%clk 0:02:55.2]} 10. Bxd7+ {[%clk 0:02:44.4]} 10... Qxd7 {[%clk
0:02:54.6]} 11. Bxf6 {[%clk 0:02:44.4]} 11... gxf6 {[%clk 0:02:55.2]} 12. O-O
{[%clk 0:02:42.4]} 12... cxd4 {[%clk 0:02:51.6]} 13. Nxd4 {[%clk 0:02:42]} 13...
Bc5 {[%clk 0:02:50.4]} 14. Nf3 {[%clk 0:02:01.1]} 14... Qxd1 {[%clk 0:02:44.8]}
15. Raxd1 {[%clk 0:02:02]} 15... Ke7 {[%clk 0:02:45]} 16. c3 {[%clk 0:02:00.3]}
16... Rad8 {[%clk 0:02:41]} 17. Rfe1 {[%clk 0:01:59.9]} 17... Rhg8 {[%clk
0:02:38.1]} 18. Kf1 {[%clk 0:01:57.9]} 18... Bb6 {[%clk 0:02:35.3]} 19. g3
{[%clk 0:01:56.7]} 19... Bc5 {[%clk 0:02:28.2]} 20. Ke2 {[%clk 0:01:56.1]} 20...
Bb6 {[%clk 0:02:27.2]} 21. Nd2 {[%clk 0:01:40.4]} 21... h5 {[%clk 0:02:17.3]}
22. Nc4 {[%clk 0:01:34.7]} 22... Bc7 {[%clk 0:02:14.8]} 23. Rxd8 {[%clk
0:01:31.2]} 23... Rxd8 {[%clk 0:02:12.9]} 24. Rd1 {[%clk 0:01:30.9]} 24... Rg8
{[%clk 0:02:08.3]} 25. Rd4 {[%clk 0:01:28.3]} 25... Rg4 {[%clk 0:02:06.6]} 26.
Ne3 {[%clk 0:01:02.7]} 26... Rxd4 {[%clk 0:02:04.2]} 27. cxd4 {[%clk 0:01:03.6]}
27... f5 {[%clk 0:02:04.3]} 28. f4 {[%clk 0:00:55]} 28... h4 {[%clk 0:02:00.3]}
29. Kd3 {[%clk 0:00:49.2]} 29... hxg3 {[%clk 0:01:59.4]} 30. hxg3 {[%clk
0:00:49.2]} 30... Kd6 {[%clk 0:01:56.3]} 31. Nc4+ {[%clk 0:00:45.1]} 31... Kd5
{[%clk 0:01:55.1]} 32. Ne3+ {[%clk 0:00:44.9]} 32... Kd6 {[%clk 0:01:54.2]} 33.
b4 {[%clk 0:00:35.1]} 33... b5 {[%clk 0:01:51.4]} 34. a3 {[%clk 0:00:23.4]}
34... Bb6 {[%clk 0:01:49.2]} 35. Kc3 {[%clk 0:00:23.2]} 35... a6 {[%clk
0:01:46.9]} 36. Kd3 {[%clk 0:00:23.3]} 1/2-1/2

[Event "*** SCC Grand Prix: Titled Tuesday Blitz"]
[Site "Chess.com"]
[Date "2020.08.11"]
[Round "10"]
[White "BursaBBSatranc"]
[Black "ChronicUnhappiness"]
[Result "1-0"]
[WhiteElo "2517"]
[BlackElo "2361"]
[TimeControl "180+1"]
[EndTime "11:56:18 PDT"]
[Termination "BursaBBSatranc won by resignation"]

1. d4 {[%clk 0:03:00.9]} 1... Nf6 {[%clk 0:02:58.1]} 2. Bf4 {[%clk 0:03:00.4]}
2... e6 {[%clk 0:02:48.5]} 3. e3 {[%clk 0:03:00.6]} 3... Bd6 {[%clk 0:02:48.4]}
4. Nf3 {[%clk 0:02:56.9]} 4... Bxf4 {[%clk 0:02:47.4]} 5. exf4 {[%clk
0:02:57.2]} 5... d6 {[%clk 0:02:46]} 6. Bd3 {[%clk 0:02:56.5]} 6... b6 {[%clk
0:02:45.6]} 7. O-O {[%clk 0:02:56.2]} 7... Bb7 {[%clk 0:02:45.8]} 8. Re1 {[%clk
0:02:56.8]} 8... O-O {[%clk 0:02:44.2]} 9. c3 {[%clk 0:02:56.3]} 9... c5 {[%clk
0:02:34.8]} 10. Nbd2 {[%clk 0:02:53.8]} 10... cxd4 {[%clk 0:02:32.8]} 11. Nxd4
{[%clk 0:02:49.9]} 11... g6 {[%clk 0:02:21.5]} 12. Qe2 {[%clk 0:02:46.4]} 12...
Nc6 {[%clk 0:02:06.1]} 13. N2f3 {[%clk 0:02:41.2]} 13... Nxd4 {[%clk 0:02:03.6]}
14. Nxd4 {[%clk 0:02:41.6]} 14... a6 {[%clk 0:01:59.2]} 15. Rad1 {[%clk
0:02:41.1]} 15... Nd5 {[%clk 0:01:57]} 16. g3 {[%clk 0:02:41.1]} 16... b5 {[%clk
0:01:46.1]} 17. Be4 {[%clk 0:02:40.1]} 17... Qc7 {[%clk 0:01:40.5]} 18. Nc2
{[%clk 0:02:34.8]} 18... Rfe8 {[%clk 0:01:38.4]} 19. Qf3 {[%clk 0:02:33.4]}
19... Rab8 {[%clk 0:01:33.3]} 20. Ne3 {[%clk 0:01:59.7]} 20... Nxe3 {[%clk
0:01:19]} 21. Qxe3 {[%clk 0:01:59.8]} 21... Bxe4 {[%clk 0:01:15]} 22. Qxe4
{[%clk 0:02:00.7]} 22... d5 {[%clk 0:01:15.5]} 23. Qd4 {[%clk 0:01:53.6]} 23...
a5 {[%clk 0:01:14.7]} 24. Re3 {[%clk 0:01:49.7]} 24... Qc4 {[%clk 0:01:13.8]}
25. Qf6 {[%clk 0:01:48.6]} 25... Qxa2 {[%clk 0:01:06.9]} 26. h4 {[%clk
0:01:48.6]} 26... Qc4 {[%clk 0:00:41.8]} 27. h5 {[%clk 0:01:43.3]} 27... gxh5
{[%clk 0:00:42.7]} 28. Re5 {[%clk 0:01:38.1]} 28... Qc5 {[%clk 0:00:18.3]} 29.
Qh6 {[%clk 0:01:23.8]} 29... f6 {[%clk 0:00:16.8]} 30. Qxf6 {[%clk 0:01:20.9]}
30... Rb7 {[%clk 0:00:16.8]} 31. Rg5+ {[%clk 0:01:19.6]} 1-0